fUST/lending_fUST_20240427
["ID","MTS","AMOUNT","RATE_DAILY","PERIOD"]
[323668594,1714153838937,-678.7023803,0.00039872,31]
[323668596,1714153838948,-678.7023803,0.00039872,31]
[323668599,1714153838961,-678.7023803,0.00039872,31]
[323668601,1714153838972,-678.7023803,0.00039872,31]
[323668603,1714153838983,-678.7023803,0.00039872,31]
[323668605,1714153838993,-678.7023803,0.00039872,31]
[323668607,1714153839004,-678.7023803,0.00039872,31]
[323668609,1714153839015,-678.7023803,0.00039872,31]
[323668611,1714153839026,-678.7023803,0.00039872,31]
[323668613,1714153839036,-678.7023803,0.00039872,31]
[323668615,1714153839046,-678.7023803,0.00039872,31]
[323668616,1714153839055,-678.7023803,0.00039872,31]
[323668618,1714153839065,-678.7023803,0.00039872,31]
[323668620,1714153839074,-678.7023803,0.00039872,31]
[323668622,1714153839085,-678.7023803,0.00039872,31]
[323668624,1714153839095,-678.7023803,0.00039872,31]
[323668626,1714153839106,-678.7023803,0.00039872,31]
[323668629,1714153839116,-678.70238028,0.00039872,31]
[323668630,1714153839126,-678.70238028,0.00039872,31]
[323668633,1714153839136,-678.70238028,0.00039872,31]
[323668634,1714153839146,-678.70238028,0.00039872,31]
[323668636,1714153839155,-678.70238028,0.00039872,31]
[323668638,1714153839164,-678.70238028,0.00039872,31]
[323668640,1714153839174,-678.70238028,0.00039872,31]
[323668642,1714153839183,-678.70238028,0.00039872,31]
[323668644,1714153839194,-678.70238028,0.00039872,31]
[323668646,1714153839204,-678.70238028,0.00039872,31]
[323668648,1714153839214,-678.70238028,0.00039872,31]
[323668650,1714153839224,-678.70238028,0.00039872,31]
[323668652,1714153839233,-678.70238028,0.00039872,31]
[323668654,1714153839243,-678.70238028,0.00039872,31]
[323668656,1714153839254,-678.70238028,0.00039872,31]
[323668658,1714153839264,-678.70238028,0.00039872,31]
[323668660,1714153839274,-678.70238028,0.00039872,31]
[323668662,1714153839283,-678.70238028,0.00039872,31]
[323668664,1714153839293,-16274.23621455,0.00039873,2]
[323668666,1714153839303,-8039.87303007,0.000399,2]
[323668763,1714153840185,-318.46858502,0.000399,2]
[323668771,1714153840263,-6210.68283886,0.000399,2]
[323668774,1714153840273,-565.91,0.0003999,3]
[323668776,1714153840283,-100000.0,0.0004,2]
[323668777,1714153840292,-353.60968096,0.00040078,2]
[323668779,1714153840302,-1038.0626453,0.00040079,4]
[323668782,1714153840311,-353.60968096,0.00040384,2]
[323668784,1714153840321,-353.60968096,0.00040689,2]
[323668786,1714153840330,-156.30140677,0.00040885,2]
[323668788,1714153840339,-156.30140668,0.00040928,2]
[323668790,1714153840350,-156.30140668,0.0004097,2]
[323668791,1714153840358,-353.60968096,0.00040995,2]
[323668793,1714153840368,-156.30140668,0.00041013,2]
[323668795,1714153840377,-156.30140668,0.00041056,2]
[323668797,1714153840387,-154.86062544,0.00041093,4]
[323668800,1714153840396,-154.84515485,0.00041093,4]
[323668802,1714153840405,-154.84515485,0.00041093,4]
[323668803,1714153840414,-154.84515485,0.00041093,4]
[323668805,1714153840423,-154.84515485,0.00041093,4]
[323668807,1714153840432,-155.01176837,0.00041093,4]
[323668809,1714153840440,-579.98066446,0.00041093,4]
[323668811,1714153840450,-318.46858502,0.00041094,4]
[323668813,1714153840459,-500.0,0.00041095,7]
[323668815,1714153840469,-500.0,0.00041095,7]
[323668817,1714153840478,-200.0,0.00041095,30]
[323668819,1714153840488,-500.0,0.00041095,7]
[323668821,1714153840498,-500.0,0.00041095,7]
[323668823,1714153840507,-500.0,0.00041095,7]
[323668826,1714153840517,-503.23975423,0.00041095,7]
[323668828,1714153840526,-500.0,0.00041095,7]
[323668830,1714153840536,-500.0,0.00041095,7]
[323668832,1714153840544,-500.0,0.00041095,7]
[323668834,1714153840553,-500.0,0.00041095,7]
[323668836,1714153840563,-464.05276159,0.00041095,7]
[323668838,1714153840575,-35.94723841,0.00041095,7]
[323668840,1714153840584,-500.0,0.00041095,7]
[323668842,1714153840594,-500.0,0.00041095,7]
[323668844,1714153840603,-199.03303208,0.00041095,7]
[323668846,1714153840612,-500.0,0.00041095,7]
[323668848,1714153840621,-500.0,0.00041095,7]
[323668850,1714153840631,-500.0,0.00041095,7]
[323668852,1714153840640,-500.0,0.00041095,7]
[323668854,1714153840649,-500.0,0.00041095,7]
[323668856,1714153840659,-500.0,0.00041095,7]
[323668858,1714153840668,-500.0,0.00041095,7]
[323668860,1714153840677,-500.0,0.00041095,7]
[323668862,1714153840686,-500.0,0.00041095,7]
[323668864,1714153840697,-500.0,0.00041095,7]
[323668866,1714153840706,-500.0,0.00041095,7]
[323668868,1714153840715,-500.0,0.00041095,7]
[323668870,1714153840725,-1476.03,0.00041095,7]
[323668872,1714153840734,-881.25,0.00041095,7]
[323668874,1714153840743,-881.25,0.00041095,7]
[323668876,1714153840753,-881.25,0.00041095,7]
[323668878,1714153840762,-881.25,0.00041095,7]
[323668880,1714153840774,-881.25,0.00041095,7]
[323668882,1714153840785,-881.25,0.00041095,7]
[323668884,1714153840794,-500.0,0.00041095,7]
[323668886,1714153840803,-518.31451826,0.00041095,7]
[323668888,1714153840813,-500.74086862,0.00041095,7]
[323668890,1714153840823,-500.0,0.00041095,7]
[323668892,1714153840832,-500.0,0.00041095,7]
[323668894,1714153840842,-500.30835537,0.00041095,7]
[323668896,1714153840851,-500.0,0.00041095,7]
[323668897,1714153840861,-1794.57,0.00041095,7]
[323668899,1714153840870,-500.0,0.00041095,2]
[323668901,1714153840879,-500.0,0.00041095,7]
[323668903,1714153840889,-500.0,0.00041095,7]
[323668906,1714153840899,-500.0,0.00041095,7]
[323668907,1714153840909,-500.0,0.00041095,7]
[323668909,1714153840918,-500.0,0.00041095,7]
[323668912,1714153840928,-500.0,0.00041095,7]
[323668913,1714153840937,-500.0,0.00041095,120]
[323668915,1714153840947,-749.88,0.00041095,7]
[323668918,1714153840957,-1510.31,0.00041095,7]
[323668919,1714153840966,-500.0,0.00041095,7]
[323668921,1714153840976,-500.0,0.00041095,7]
[323668923,1714153840985,-500.0,0.00041095,7]
[323668925,1714153840996,-500.0,0.00041095,7]
[323668928,1714153841006,-330.43673906,0.00041095,7]
[323668930,1714153841016,-500.0,0.00041095,7]
[323668932,1714153841028,-500.0,0.00041095,7]
[323668934,1714153841038,-500.0,0.00041095,7]
[323668935,1714153841049,-505.92282344,0.00041095,7]
[323668937,1714153841058,-500.73415858,0.00041095,7]
[323668940,1714153841068,-500.0,0.00041095,7]
[323668941,1714153841078,-500.0,0.00041095,7]
[323668943,1714153841088,-500.0,0.00041095,7]
[323668945,1714153841098,-500.0,0.00041095,7]
[323668947,1714153841107,-510.18,0.00041095,7]
[323668949,1714153841116,-500.0,0.00041095,7]
[323668951,1714153841126,-500.0,0.00041095,7]
[323668953,1714153841136,-501.11798054,0.00041095,7]
[323668955,1714153841146,-500.0,0.00041095,7]
[323668958,1714153841156,-500.0,0.00041095,7]
[323668959,1714153841166,-500.0,0.00041095,7]
[323668962,1714153841176,-512.21798088,0.00041095,7]
[323668963,1714153841187,-500.0,0.00041095,7]
[323668966,1714153841197,-522.66692858,0.00041095,7]
[323668968,1714153841208,-500.0,0.00041095,7]
[323668969,1714153841217,-500.0,0.00041095,7]
[323668971,1714153841228,-500.0,0.00041095,7]
[323668973,1714153841237,-500.0,0.00041095,7]
[323668976,1714153841252,-500.0,0.00041095,7]
[323668978,1714153841265,-500.0,0.00041095,7]
[323668980,1714153841278,-500.0,0.00041095,7]
[323668983,1714153841290,-500.0,0.00041095,7]
[323668985,1714153841303,-500.0,0.00041095,7]
[323668987,1714153841316,-500.0,0.00041095,7]
[323668989,1714153841327,-500.0,0.00041095,7]
[323668991,1714153841338,-500.0,0.00041095,7]
[323668994,1714153841349,-500.0,0.00041095,7]
[323668996,1714153841361,-500.0,0.00041095,7]
[323668998,1714153841373,-500.0,0.00041095,7]
[323669000,1714153841384,-500.0,0.00041095,7]
[323669002,1714153841395,-500.0,0.00041095,7]
[323669004,1714153841408,-500.0,0.00041095,7]
[323669007,1714153841419,-500.49816146,0.00041095,7]
[323669009,1714153841430,-500.0,0.00041095,7]
[323669011,1714153841441,-500.0,0.00041095,7]
[323669013,1714153841453,-500.0,0.00041095,7]
[323669015,1714153841465,-500.0,0.00041095,7]
[323669018,1714153841478,-539.41379497,0.00041095,7]
[323669020,1714153841489,-504.30447543,0.00041095,7]
[323669022,1714153841502,-500.0,0.00041095,7]
[323669024,1714153841513,-500.0,0.00041095,7]
[323669026,1714153841526,-500.0,0.00041095,7]
[323669028,1714153841538,-500.0,0.00041095,7]
[323669030,1714153841550,-500.0,0.00041095,7]
[323669032,1714153841561,-500.0,0.00041095,7]
[323669035,1714153841573,-540.4697437,0.00041095,7]
[323669037,1714153841584,-500.0,0.00041095,7]
[323669039,1714153841594,-500.0,0.00041095,7]
[323669041,1714153841606,-500.0,0.00041095,7]
[323669043,1714153841617,-500.0,0.00041095,7]
[323669045,1714153841629,-500.0,0.00041095,7]
[323669048,1714153841642,-500.0,0.00041095,7]
[323669050,1714153841654,-350.20860262,0.00041095,7]
[323669052,1714153841668,-500.0,0.00041095,7]
[323669054,1714153841677,-613.7,0.00041095,7]
[323669056,1714153841687,-500.0,0.00041095,7]
[323669058,1714153841697,-500.0,0.00041095,7]
[323669061,1714153841711,-1796.33,0.00041095,7]
[323669063,1714153841723,-500.0,0.00041095,7]
[323669065,1714153841734,-500.76801721,0.00041095,7]
[323669067,1714153841745,-500.0,0.00041095,7]
[323669070,1714153841759,-500.0,0.00041095,7]
[323669072,1714153841772,-500.0,0.00041095,7]
[323669074,1714153841787,-500.0,0.00041095,7]
[323669076,1714153841798,-1747.75,0.00041095,7]
[323669078,1714153841810,-500.0,0.00041095,7]
[323669081,1714153841821,-500.0,0.00041095,7]
[323669083,1714153841831,-500.0,0.00041095,7]
[323669085,1714153841842,-995.43,0.00041095,7]
[323669087,1714153841854,-995.43,0.00041095,7]
[323669088,1714153841866,-995.43,0.00041095,7]
[323669089,1714153841877,-995.43,0.00041095,7]
[323669090,1714153841888,-995.43,0.00041095,7]
[323669091,1714153841899,-995.43,0.00041095,7]
[323669092,1714153841911,-500.0,0.00041095,7]
[323669093,1714153841922,-508.82,0.00041095,7]
[323669094,1714153841933,-500.0,0.00041095,7]
[323669095,1714153841945,-500.0,0.00041095,7]
[323669096,1714153841956,-500.0,0.00041095,7]
[323669097,1714153841968,-500.0,0.00041095,7]
[323669098,1714153841980,-500.0,0.00041095,7]
[323669099,1714153841990,-500.0,0.00041095,7]
[323669100,1714153842001,-452.5298509,0.00041095,7]
[323669101,1714153842011,-638.62777397,0.00041095,7]
[323669102,1714153842020,-500.0,0.00041095,7]
[323669103,1714153842029,-500.0,0.00041095,7]
[323669104,1714153842039,-1783.72,0.00041095,7]
[323669105,1714153842049,-505.45807769,0.00041095,7]
[323669106,1714153842060,-500.0,0.00041095,7]
[323669107,1714153842070,-561.19,0.00041095,30]
[323669108,1714153842081,-500.0,0.00041095,7]
[323669111,1714153842091,-500.0,0.00041095,7]
[323669113,1714153842101,-500.0,0.00041095,7]
[323669115,1714153842113,-319.82127634,0.00041095,7]
[323669117,1714153842125,-500.0,0.00041095,7]
[323669119,1714153842136,-500.0,0.00041095,7]
[323669121,1714153842146,-500.0,0.00041095,7]
[323669123,1714153842156,-500.0,0.00041095,7]
[323669125,1714153842166,-647.14392687,0.00041095,7]
[323669127,1714153842176,-500.0,0.00041095,7]
[323669129,1714153842186,-500.0,0.00041095,7]
[323669132,1714153842197,-500.0,0.00041095,7]
[323669134,1714153842208,-500.0,0.00041095,7]
[323669136,1714153842218,-989.27,0.00041095,7]
[323669138,1714153842228,-500.0,0.00041095,7]
[323669140,1714153842238,-500.0,0.00041095,7]
[323669142,1714153842248,-500.0,0.00041095,7]
[323669144,1714153842257,-500.0,0.00041095,7]
[323669146,1714153842268,-500.0,0.00041095,7]
[323669148,1714153842278,-1000.0,0.00041095,7]
[323669150,1714153842289,-500.0,0.00041095,7]
[323669152,1714153842299,-500.0,0.00041095,7]
[323669154,1714153842309,-500.0,0.00041095,7]
[323669156,1714153842320,-500.0,0.00041095,7]
[323669158,1714153842330,-500.0,0.00041095,7]
[323669160,1714153842341,-500.0,0.00041095,7]
[323669162,1714153842351,-500.0,0.00041095,7]
[323669164,1714153842360,-1248.04,0.00041095,7]
[323669166,1714153842370,-573.43996447,0.00041095,7]
[323669168,1714153842381,-500.0,0.00041095,7]
[323669171,1714153842391,-500.0,0.00041095,7]
[323669174,1714153842401,-1102.52,0.00041095,7]
[323669178,1714153842411,-500.0,0.00041095,7]
[323669180,1714153842422,-500.0,0.00041095,7]
[323669183,1714153842432,-873.33,0.00041095,7]
[323669185,1714153842442,-500.0,0.00041095,7]
[323669187,1714153842452,-930.18,0.00041095,7]
[323669189,1714153842462,-500.0,0.00041095,7]
[323669191,1714153842472,-500.0,0.00041095,7]
[323669194,1714153842482,-243.19016841,0.00041095,7]
[323669199,1714153842499,-256.80983159,0.00041095,7]
[323669202,1714153842509,-151.37718841,0.00041095,7]
[323669366,1714153843206,-0.01247463,0.00041095,7]
[323669375,1714153843270,-348.61033696,0.00041095,7]
[323669378,1714153843281,-2373.42,0.00041095,7]
[323669381,1714153843291,-500.0,0.00041095,7]
[323669384,1714153843301,-500.0,0.00041095,7]
[323669387,1714153843312,-500.0,0.00041095,7]
[323669390,1714153843322,-500.0,0.00041095,7]
[323669393,1714153843332,-2005.46,0.00041095,7]
[323669396,1714153843342,-500.0,0.00041095,7]
[323669399,1714153843353,-500.0,0.00041095,7]
[323669401,1714153843363,-500.0,0.00041095,7]
[323669404,1714153843373,-5222.26,0.00041095,7]
[323669406,1714153843383,-3601.21,0.00041095,7]
[323669408,1714153843393,-500.0,0.00041095,7]
[323669410,1714153843403,-500.0,0.00041095,7]
[323669412,1714153843412,-500.0,0.00041095,7]
[323669413,1714153843421,-500.0,0.00041095,7]
[323669415,1714153843430,-500.0,0.00041095,7]
[323669417,1714153843440,-2798.65,0.00041095,7]
[323669437,1714153843618,-500.0,0.00041095,7]
[323669439,1714153843627,-500.0,0.00041095,7]
[323669441,1714153843637,-4122.03,0.00041095,7]
[323669443,1714153843645,-500.0,0.00041095,7]
[323669445,1714153843654,-509.00458954,0.00041095,7]
[323669446,1714153843663,-500.0,0.00041095,7]
[323669448,1714153843673,-642.1,0.00041095,7]
[323669450,1714153843682,-500.0,0.00041095,7]
[323669452,1714153843691,-500.0,0.00041095,7]
[323669454,1714153843704,-500.0,0.00041095,7]
[323669456,1714153843714,-500.0,0.00041095,7]
[323669458,1714153843723,-500.0,0.00041095,7]
[323669460,1714153843732,-500.0,0.00041095,7]
[323669462,1714153843741,-500.0,0.00041095,7]
[323669464,1714153843752,-500.0,0.00041095,7]
[323669466,1714153843761,-500.0,0.00041095,7]
[323669468,1714153843770,-502.42160103,0.00041095,7]
[323669470,1714153843781,-2110.86,0.00041095,7]
[323669472,1714153843791,-500.0,0.00041095,7]
[323669474,1714153843800,-500.0,0.00041095,7]
[323669476,1714153843809,-306.83685252,0.00041095,7]
[323669478,1714153843819,-500.0,0.00041095,7]
[323669480,1714153843828,-1449.43,0.00041095,7]
[323669482,1714153843838,-500.0,0.00041095,7]
[323669484,1714153843846,-500.0,0.00041095,7]
[323669486,1714153843856,-500.0,0.00041095,7]
[323669488,1714153843865,-660.54,0.00041095,7]
[323669490,1714153843874,-500.0,0.00041095,7]
[323669492,1714153843883,-500.0,0.00041095,7]
[323669494,1714153843892,-500.0,0.00041095,7]
[323669496,1714153843901,-156.30140668,0.00041098,2]
[323669497,1714153843912,-156.30140668,0.00041141,2]
[323669498,1714153843921,-156.30140668,0.00041184,2]
[323669499,1714153843930,-156.30140668,0.00041226,2]
[323669500,1714153843939,-995.43,0.00041268,7]
[323669501,1714153843949,-995.43,0.00041268,7]
[323669502,1714153843961,-156.30140668,0.00041269,2]
[323669503,1714153843970,-44444.0,0.00041269,5]
[323669504,1714153843980,-1618.9138425,0.00041367,4]
[323669505,1714153843989,-228.67045727,0.00041367,4]
[323669506,1714153843999,-995.43,0.00041368,7]
[323669507,1714153844008,-995.43,0.00041368,7]
[323669508,1714153844017,-995.43,0.00041368,7]
[323669509,1714153844026,-999.0,0.00041368,10]
[323669510,1714153844036,-500.0,0.00041369,7]
[323669511,1714153844046,-500.0,0.00041369,7]
[323669512,1714153844055,-285.83910285,0.00041369,30]
[323669513,1714153844064,-270.77507028,0.00041369,7]
[323669514,1714153844073,-500.0,0.00041369,7]
[323669515,1714153844082,-500.0,0.00041369,7]
[323669516,1714153844091,-500.0,0.00041369,7]
[323669517,1714153844101,-500.0,0.00041369,7]
[323669518,1714153844110,-500.0,0.00041369,7]
[323669519,1714153844119,-500.0,0.00041369,7]
[323669520,1714153844128,-500.0,0.00041369,7]
[323669521,1714153844138,-500.0,0.00041369,7]
[323669522,1714153844147,-500.0,0.00041369,7]
[323669523,1714153844156,-358.16569609,0.00041369,7]
[323669524,1714153844166,-500.0,0.00041369,7]
[323669525,1714153844175,-500.0,0.00041369,7]
[323669526,1714153844184,-500.0,0.00041369,7]
[323669527,1714153844194,-500.0,0.00041369,7]
[323669528,1714153844202,-500.0,0.00041369,7]
[323669529,1714153844211,-500.81447734,0.00041369,7]
[323669530,1714153844221,-500.0,0.00041369,7]
[323669531,1714153844230,-500.0,0.00041369,7]
[323669533,1714153844239,-534.76,0.00041369,7]
[323669535,1714153844249,-500.0,0.00041369,7]
[323669537,1714153844258,-1476.03,0.00041369,7]
[323669539,1714153844267,-501.70259554,0.00041369,7]
[323669541,1714153844277,-500.0,0.00041369,7]
[323669543,1714153844286,-500.0,0.00041369,7]
[323669545,1714153844294,-500.0,0.00041369,7]
[323669547,1714153844303,-1794.57,0.00041369,7]
[323669549,1714153844312,-500.0,0.00041369,2]
[323669550,1714153844321,-500.0,0.00041369,7]
[323669551,1714153844330,-500.0,0.00041369,7]
[323669552,1714153844338,-500.0,0.00041369,7]
[323669553,1714153844347,-500.0,0.00041369,7]
[323669554,1714153844356,-500.0,0.00041369,7]
[323669555,1714153844365,-500.0,0.00041369,7]
[323669556,1714153844373,-500.0,0.00041369,120]
[323669557,1714153844382,-749.88,0.00041369,7]
[323669559,1714153844391,-1510.31,0.00041369,7]
[323669561,1714153844400,-500.0,0.00041369,7]
[323669563,1714153844409,-500.0,0.00041369,7]
[323669565,1714153844419,-583.25936964,0.00041369,7]
[323669567,1714153844427,-500.0,0.00041369,7]
[323669569,1714153844437,-500.0,0.00041369,7]
[323669571,1714153844446,-500.0,0.00041369,7]
[323669573,1714153844455,-500.0,0.00041369,7]
[323669575,1714153844464,-500.0,0.00041369,7]
[323669577,1714153844472,-500.0,0.00041369,7]
[323669579,1714153844481,-501.74372469,0.00041369,7]
[323669580,1714153844490,-500.0,0.00041369,7]
[323669582,1714153844500,-510.18,0.00041369,7]
[323669584,1714153844509,-500.0,0.00041369,7]
[323669586,1714153844518,-500.0,0.00041369,7]
[323669588,1714153844527,-500.0,0.00041369,7]
[323669591,1714153844537,-554.44352237,0.00041369,7]
[323669593,1714153844546,-500.0,0.00041369,7]
[323669594,1714153844555,-500.0,0.00041369,7]
[323669596,1714153844564,-500.0,0.00041369,7]
[323669598,1714153844573,-500.0,0.00041369,7]
[323669601,1714153844583,-500.0,0.00041369,7]
[323669603,1714153844592,-473.16411641,0.00041369,7]
[323669604,1714153844601,-526.2291859,0.00041369,7]
[323669607,1714153844611,-500.0,0.00041369,7]
[323669608,1714153844620,-159.03175449,0.00041369,7]
[323669610,1714153844629,-500.0,0.00041369,7]
[323669612,1714153844638,-263.29551373,0.00041369,7]
[323669621,1714153844710,-20.00259638,0.00041369,7]
[323669623,1714153844719,-600.9646288,0.00041369,7]
[323669625,1714153844728,-500.0,0.00041369,7]
[323669627,1714153844737,-398.88536723,0.00041369,7]
[323669732,1714153846087,-101.11463277,0.00041369,7]
[323669733,1714153846097,-500.0,0.00041369,7]
[323669734,1714153846107,-517.83367019,0.00041369,7]
[323669736,1714153846117,-393.6015372,0.00041369,7]
[323669738,1714153846126,-500.0,0.00041369,7]
[323669740,1714153846135,-500.0,0.00041369,7]
[323669741,1714153846144,-470.24138668,0.00041369,7]
[323669742,1714153846154,-500.0,0.00041369,7]
[323669743,1714153846162,-500.0,0.00041369,7]
[323669744,1714153846171,-500.0,0.00041369,7]
[323669745,1714153846181,-500.0,0.00041369,7]
[323669747,1714153846190,-500.0,0.00041369,7]
[323669749,1714153846200,-500.0,0.00041369,7]
[323669750,1714153846209,-500.0,0.00041369,7]
[323669751,1714153846218,-500.0,0.00041369,7]
[323669752,1714153846227,-500.0,0.00041369,7]
[323669753,1714153846237,-500.0,0.00041369,7]
[323669754,1714153846246,-500.0,0.00041369,7]
[323669755,1714153846256,-500.0,0.00041369,7]
[323669756,1714153846266,-500.0,0.00041369,7]
[323669757,1714153846276,-500.0,0.00041369,7]
[323669758,1714153846285,-500.0,0.00041369,7]
[323669759,1714153846294,-500.0,0.00041369,7]
[323669760,1714153846303,-613.7,0.00041369,7]
[323669761,1714153846312,-500.0,0.00041369,7]
[323669762,1714153846321,-1796.33,0.00041369,7]
[323669763,1714153846331,-500.0,0.00041369,7]
[323669764,1714153846340,-500.0,0.00041369,7]
[323669765,1714153846349,-499.34622419,0.00041369,7]
[323669766,1714153846359,-500.0,0.00041369,7]
[323669767,1714153846368,-500.0,0.00041369,7]
[323669768,1714153846377,-500.0,0.00041369,7]
[323669769,1714153846386,-1747.75,0.00041369,7]
[323669770,1714153846396,-500.0,0.00041369,7]
[323669771,1714153846405,-500.0,0.00041369,7]
[323669772,1714153846414,-427.3935651,0.00041369,7]
[323669773,1714153846423,-500.0,0.00041369,7]
[323669774,1714153846432,-123.81801387,0.00041369,7]
[323669775,1714153846444,-385.00198613,0.00041369,7]
[323669776,1714153846454,-500.0,0.00041369,7]
[323669777,1714153846464,-500.0,0.00041369,7]
[323669778,1714153846473,-500.0,0.00041369,7]
[323669779,1714153846482,-500.0,0.00041369,7]
[323669780,1714153846491,-500.0,0.00041369,7]
[323669781,1714153846502,-500.0,0.00041369,7]
[323669782,1714153846511,-500.0,0.00041369,7]
[323669783,1714153846520,-500.0,0.00041369,7]
[323669784,1714153846530,-1783.72,0.00041369,7]
[323669786,1714153846539,-500.0,0.00041369,7]
[323669787,1714153846548,-561.19,0.00041369,30]
[323669788,1714153846558,-500.0,0.00041369,7]
[323669789,1714153846567,-500.0,0.00041369,7]
[323669790,1714153846576,-500.0,0.00041369,7]
[323669791,1714153846585,-500.0,0.00041369,7]
[323669792,1714153846594,-500.0,0.00041369,7]
[323669793,1714153846603,-500.0,0.00041369,7]
[323669794,1714153846613,-500.0,0.00041369,7]
[323669795,1714153846622,-500.0,0.00041369,7]
[323669796,1714153846632,-500.0,0.00041369,7]
[323669797,1714153846641,-500.0,0.00041369,7]
[323669798,1714153846650,-500.0,0.00041369,7]
[323669799,1714153846660,-989.27,0.00041369,7]
[323669800,1714153846669,-500.0,0.00041369,7]
[323669801,1714153846678,-500.0,0.00041369,7]
[323669802,1714153846688,-500.0,0.00041369,7]
[323669803,1714153846697,-500.0,0.00041369,7]
[323669804,1714153846706,-1036.00453959,0.00041369,7]
[323669805,1714153846715,-500.0,0.00041369,7]
[323669807,1714153846725,-500.0,0.00041369,7]
[323669808,1714153846734,-500.0,0.00041369,7]
[323669810,1714153846743,-500.0,0.00041369,7]
[323669812,1714153846753,-500.0,0.00041369,7]
[323669814,1714153846762,-580.30683966,0.00041369,7]
[323669816,1714153846772,-500.0,0.00041369,7]
[323669819,1714153846784,-1248.04,0.00041369,7]
[323669821,1714153846794,-500.0,0.00041369,7]
[323669822,1714153846803,-500.0,0.00041369,7]
[323669824,1714153846812,-1102.52,0.00041369,7]
[323669826,1714153846821,-547.92351468,0.00041369,7]
[323669828,1714153846831,-873.33,0.00041369,7]
[323669830,1714153846840,-500.0,0.00041369,7]
[323669833,1714153846849,-930.18,0.00041369,7]
[323669835,1714153846861,-500.0,0.00041369,7]
[323669836,1714153846870,-217.50220459,0.00041369,7]
[323669838,1714153846879,-500.0,0.00041369,7]
[323669840,1714153846888,-500.0,0.00041369,7]
[323669842,1714153846897,-2373.42,0.00041369,7]
[323669844,1714153846907,-500.0,0.00041369,7]
[323669845,1714153846916,-500.0,0.00041369,7]
[323669847,1714153846926,-500.0,0.00041369,7]
[323669849,1714153846936,-356.37230629,0.00041369,7]
[323669851,1714153846946,-2005.46,0.00041369,7]
[323669853,1714153846956,-500.0,0.00041369,7]
[323669855,1714153846966,-500.0,0.00041369,7]
[323669857,1714153846975,-500.0,0.00041369,7]
[323669859,1714153846984,-5222.26,0.00041369,7]
[323669860,1714153846994,-3601.21,0.00041369,7]
[323669861,1714153847004,-500.0,0.00041369,7]
[323669862,1714153847014,-500.0,0.00041369,7]
[323669863,1714153847023,-500.0,0.00041369,7]
[323669864,1714153847032,-500.0,0.00041369,7]
[323669865,1714153847041,-500.0,0.00041369,7]
[323669866,1714153847051,-2798.65,0.00041369,7]
[323669867,1714153847063,-500.0,0.00041369,7]
[323669868,1714153847072,-500.0,0.00041369,7]
[323669869,1714153847082,-4122.03,0.00041369,7]
[323669870,1714153847092,-500.0,0.00041369,7]
[323669871,1714153847101,-500.0,0.00041369,7]
[323669872,1714153847110,-642.1,0.00041369,7]
[323669873,1714153847120,-500.0,0.00041369,7]
[323669874,1714153847129,-500.18864772,0.00041369,7]
[323669875,1714153847140,-500.0,0.00041369,7]